[Event "*** Titled Tuesday Blitz"]
[Site "Chess.com"]
[Date "2020.05.05"]
[Round "9"]
[White "almatyonelove"]
[Black "IriBu"]
[Result "1-0"]
[WhiteElo "2574"]
[BlackElo "2449"]
[TimeControl "180+1"]
[EndTime "11:49:27 PDT"]
[Termination "almatyonelove won on time"]

1. d4 {[%clk 0:03:00.9]} 1... Nf6 {[%clk 0:02:59.7]} 2. c4 {[%clk 0:02:59.9]}
2... e6 {[%clk 0:03:00.1]} 3. Nf3 {[%clk 0:02:59.7]} 3... c5 {[%clk 0:03:00.3]}
4. Nc3 {[%clk 0:02:57.3]} 4... cxd4 {[%clk 0:02:58.7]} 5. Nxd4 {[%clk
0:02:58.2]} 5... Bb4 {[%clk 0:02:58.3]} 6. g3 {[%clk 0:02:58.2]} 6... Nc6 {[%clk
0:02:57.4]} 7. Bg2 {[%clk 0:02:58.3]} 7... O-O {[%clk 0:02:55.7]} 8. O-O {[%clk
0:02:58.3]} 8... a6 {[%clk 0:02:53.4]} 9. Nc2 {[%clk 0:02:58.1]} 9... Bc5 {[%clk
0:02:50.9]} 10. e4 {[%clk 0:02:54.6]} 10... d6 {[%clk 0:02:50.8]} 11. a3 {[%clk
0:02:52.6]} 11... e5 {[%clk 0:02:48.6]} 12. h3 {[%clk 0:02:52.5]} 12... h6
{[%clk 0:02:48]} 13. b4 {[%clk 0:02:52.1]} 13... Ba7 {[%clk 0:02:47.6]} 14. Qd3
{[%clk 0:02:47]} 14... Nd4 {[%clk 0:02:45.3]} 15. Bb2 {[%clk 0:02:29.3]} 15...
Qe7 {[%clk 0:02:43.1]} 16. Rad1 {[%clk 0:02:26.8]} 16... Be6 {[%clk 0:02:40.5]}
17. Ne3 {[%clk 0:02:15.8]} 17... b5 {[%clk 0:02:34.1]} 18. Ncd5 {[%clk
0:02:13.2]} 18... Nxd5 {[%clk 0:02:28.6]} 19. cxd5 {[%clk 0:02:14.1]} 19... Bd7
{[%clk 0:02:27.6]} 20. Kh2 {[%clk 0:02:11.2]} 20... Rac8 {[%clk 0:02:26.5]} 21.
f4 {[%clk 0:02:09.6]} 21... f6 {[%clk 0:02:22.6]} 22. f5 {[%clk 0:02:09]} 22...
Rc7 {[%clk 0:02:21.7]} 23. Rd2 {[%clk 0:01:55.3]} 23... Rfc8 {[%clk 0:02:21.3]}
24. g4 {[%clk 0:01:54.3]} 24... Be8 {[%clk 0:02:09.3]} 25. Rff2 {[%clk
0:01:52.3]} 25... Bf7 {[%clk 0:01:55.8]} 26. Kg3 {[%clk 0:01:51.8]} 26... Kf8
{[%clk 0:01:34.5]} 27. Bf1 {[%clk 0:01:49.7]} 27... Ke8 {[%clk 0:01:33]} 28. Rg2
{[%clk 0:01:49.9]} 28... Kd7 {[%clk 0:01:33.1]} 29. h4 {[%clk 0:01:40.7]} 29...
Rc4 {[%clk 0:01:29.9]} 30. Rdf2 {[%clk 0:01:21.3]} 30... R8c7 {[%clk 0:01:29.6]}
31. Nxc4 {[%clk 0:01:10.3]} 31... bxc4 {[%clk 0:01:28.9]} 32. Qd1 {[%clk
0:01:10.7]} 32... c3 {[%clk 0:01:23.6]} 33. Qa4+ {[%clk 0:01:10.7]} 33... Kd8
{[%clk 0:01:21.4]} 34. Bc1 {[%clk 0:01:06.6]} 34... c2 {[%clk 0:01:09.6]} 35.
Qxa6 {[%clk 0:01:05.8]} 35... Rc3+ {[%clk 0:01:08.2]} 36. Kh2 {[%clk 0:01:04.7]}
36... Qc7 {[%clk 0:01:03.4]} 37. Qa5 {[%clk 0:00:53.6]} 37... Bb6 {[%clk
0:00:56.9]} 38. Qa8+ {[%clk 0:00:53.2]} 38... Ke7 {[%clk 0:00:55.3]} 39. Qh8
{[%clk 0:00:49.7]} 39... Nf3+ {[%clk 0:00:53.2]} 40. Rxf3 {[%clk 0:00:49.3]}
40... Rxf3 {[%clk 0:00:52.9]} 41. Qxg7 {[%clk 0:00:49.8]} 41... Rxf1 {[%clk
0:00:49.8]} 42. Bxh6 {[%clk 0:00:49.6]} 42... Qc8 {[%clk 0:00:40.1]} 43. g5
{[%clk 0:00:49.1]} 43... c1=Q {[%clk 0:00:32]} 44. gxf6+ {[%clk 0:00:49.1]}
44... Kd8 {[%clk 0:00:28]} 45. Qf8+ {[%clk 0:00:40.4]} 45... Kc7 {[%clk
0:00:27.9]} 46. Qxf7+ {[%clk 0:00:23.8]} 46... Kb8 {[%clk 0:00:27.5]} 47. Bxc1
{[%clk 0:00:24.2]} 47... Bg1+ {[%clk 0:00:20.4]} 48. Rxg1 {[%clk 0:00:20.6]}
48... Rxg1 {[%clk 0:00:14.1]} 49. Be3 {[%clk 0:00:18.1]} 49... Qc2+ {[%clk
0:00:06.4]} 50. Kxg1 {[%clk 0:00:17.8]} 50... Qd1+ {[%clk 0:00:07.1]} 51. Kf2
{[%clk 0:00:17.8]} 51... Qc2+ {[%clk 0:00:06.8]} 52. Kf3 {[%clk 0:00:17.8]}
52... Qd1+ {[%clk 0:00:06.7]} 53. Kg3 {[%clk 0:00:17.9]} 53... Qe1+ {[%clk
0:00:06.9]} 54. Bf2 {[%clk 0:00:18.4]} 54... Qc3+ {[%clk 0:00:06.5]} 55. Kg2
{[%clk 0:00:18.7]} 55... Qd3 {[%clk 0:00:05.6]} 56. Qg8+ {[%clk 0:00:15.1]}
56... Kb7 {[%clk 0:00:05.1]} 57. Qg4 {[%clk 0:00:16]} 57... Qd2 {[%clk
0:00:02.9]} 58. f7 {[%clk 0:00:15.9]} 58... Qh6 {[%clk 0:00:03.1]} 59. Qg8
{[%clk 0:00:15.9]} 59... Qf4 {[%clk 0:00:03]} 60. f8=Q {[%clk 0:00:16.1]} 60...
Qf3+ {[%clk 0:00:03.3]} 61. Kh2 {[%clk 0:00:16.8]} 61... Qxf2+ {[%clk
0:00:03.1]} 62. Qg2 {[%clk 0:00:15.9]} 62... Qxh4+ {[%clk 0:00:02.6]} 63. Kg1
{[%clk 0:00:16.3]} 63... Qe1+ {[%clk 0:00:02.8]} 64. Qf1 {[%clk 0:00:16.4]}
64... Qg3+ {[%clk 0:00:02.9]} 65. Kh1 {[%clk 0:00:16.9]} 65... Qh4+ {[%clk
0:00:02.9]} 66. Kg2 {[%clk 0:00:17.4]} 66... Qxe4+ {[%clk 0:00:02.1]} 67. Qf3
{[%clk 0:00:16.8]} 67... Qc2+ {[%clk 0:00:02]} 68. Kh3 {[%clk 0:00:16.9]} 68...
Qc1 {[%clk 0:00:01.2]} 69. Qe7+ {[%clk 0:00:17.1]} 69... Ka6 {[%clk 0:00:01.2]}
70. Qxd6+ {[%clk 0:00:17.3]} 70... Kb5 {[%clk 0:00:02.1]} 71. Qc6+ {[%clk
0:00:16.8]} 1-0

[Event "*** Titled Tuesday Blitz"]
[Site "Chess.com"]
[Date "2020.05.05"]
[Round "9"]
[White "VladimirBugayev"]
[Black "kinga2008"]
[Result "0-1"]
[WhiteElo "2238"]
[BlackElo "2114"]
[TimeControl "180+1"]
[EndTime "11:49:29 PDT"]
[Termination "kinga2008 won by checkmate"]

1. e4 {[%clk 0:03:00.9]} 1... g6 {[%clk 0:03:00.9]} 2. d4 {[%clk 0:02:59.6]}
2... Bg7 {[%clk 0:03:00.4]} 3. h4 {[%clk 0:02:59.6]} 3... h5 {[%clk 0:02:59.6]}
4. Nc3 {[%clk 0:02:55.9]} 4... c5 {[%clk 0:02:57.1]} 5. Be3 {[%clk 0:02:51.3]}
5... cxd4 {[%clk 0:02:36.7]} 6. Bxd4 {[%clk 0:02:50.4]} 6... e5 {[%clk
0:02:33.2]} 7. Bc5 {[%clk 0:02:44.4]} 7... Ne7 {[%clk 0:02:11.8]} 8. Nd5 {[%clk
0:02:05.1]} 8... d6 {[%clk 0:02:07.2]} 9. Nxe7 {[%clk 0:01:44.3]} 9... dxc5
{[%clk 0:02:04.7]} 10. Qxd8+ {[%clk 0:01:43.1]} 10... Kxd8 {[%clk 0:02:05.6]}
11. Nd5 {[%clk 0:01:43.5]} 11... Be6 {[%clk 0:01:56.4]} 12. O-O-O {[%clk
0:01:42.3]} 12... Nd7 {[%clk 0:01:49.1]} 13. Nf3 {[%clk 0:01:40.1]} 13... Bxd5
{[%clk 0:01:40.4]} 14. Rxd5 {[%clk 0:01:38.4]} 14... Kc7 {[%clk 0:01:38.3]} 15.
Bb5 {[%clk 0:01:37.6]} 15... Rad8 {[%clk 0:01:22.1]} 16. Bxd7 {[%clk 0:01:30.3]}
16... Rxd7 {[%clk 0:01:20.8]} 17. Rxc5+ {[%clk 0:01:30.5]} 17... Kb6 {[%clk
0:01:17.3]} 18. Rd5 {[%clk 0:01:30.2]} 18... Rxd5 {[%clk 0:01:15.3]} 19. exd5
{[%clk 0:01:29.6]} 19... Kc5 {[%clk 0:01:14.3]} 20. Rd1 {[%clk 0:01:20.2]} 20...
Rd8 {[%clk 0:01:12.2]} 21. Ng5 {[%clk 0:01:14.1]} 21... Bh6 {[%clk 0:01:04]} 22.
Re1 {[%clk 0:00:50.4]} 22... f6 {[%clk 0:01:01.3]} 23. f4 {[%clk 0:00:46.4]}
23... fxg5 {[%clk 0:00:55.4]} 24. hxg5 {[%clk 0:00:44.9]} 24... Bg7 {[%clk
0:00:51]} 25. fxe5 {[%clk 0:00:45.4]} 25... Re8 {[%clk 0:00:35.6]} 26. d6 {[%clk
0:00:35.1]} 26... Bxe5 {[%clk 0:00:30.8]} 27. Rd1 {[%clk 0:00:22]} 27... Bxd6
{[%clk 0:00:28.8]} 28. b4+ {[%clk 0:00:20.5]} 28... Kc6 {[%clk 0:00:26.5]} 29.
b5+ {[%clk 0:00:20.2]} 29... Kc7 {[%clk 0:00:19.9]} 30. Rf1 {[%clk 0:00:19.7]}
30... Rf8 {[%clk 0:00:18.1]} 31. Re1 {[%clk 0:00:19.1]} 31... Kd7 {[%clk
0:00:18.1]} 32. Re4 {[%clk 0:00:17.8]} 32... Rf4 {[%clk 0:00:16.7]} 33. Re2
{[%clk 0:00:16.7]} 33... Rg4 {[%clk 0:00:16.2]} 34. Kb2 {[%clk 0:00:15.3]} 34...
Rxg5 {[%clk 0:00:15.3]} 35. a4 {[%clk 0:00:14.4]} 35... Rg4 {[%clk 0:00:14.5]}
36. Kb3 {[%clk 0:00:13.8]} 36... Rb4+ {[%clk 0:00:12.9]} 37. Kc3 {[%clk
0:00:13]} 37... Rxa4 {[%clk 0:00:12.9]} 38. Rf2 {[%clk 0:00:13.1]} 38... Rf4
{[%clk 0:00:09.3]} 39. Rd2 {[%clk 0:00:12.3]} 39... Rf5 {[%clk 0:00:09.2]} 40.
Kc4 {[%clk 0:00:11.9]} 40... h4 {[%clk 0:00:09.1]} 41. Rd3 {[%clk 0:00:11.5]}
41... g5 {[%clk 0:00:09.1]} 42. Re3 {[%clk 0:00:11]} 42... g4 {[%clk 0:00:08.4]}
43. Re4 {[%clk 0:00:10.5]} 43... h3 {[%clk 0:00:07.7]} 44. Rxg4 {[%clk
0:00:10.3]} 44... h2 {[%clk 0:00:06.6]} 45. Rh4 {[%clk 0:00:10.7]} 45... Rf1
{[%clk 0:00:07.2]} 46. Rh7+ {[%clk 0:00:10.5]} 46... Ke6 {[%clk 0:00:05.9]} 47.
Rh6+ {[%clk 0:00:10.1]} 47... Ke5 {[%clk 0:00:06.1]} 48. Rh5+ {[%clk 0:00:10.3]}
48... Ke4 {[%clk 0:00:06.2]} 49. Rh4+ {[%clk 0:00:09.1]} 49... Ke3 {[%clk
0:00:03.8]} 50. Rh6 {[%clk 0:00:08]} 50... h1=Q {[%clk 0:00:03.6]} 51. Rxd6
{[%clk 0:00:08]} 51... Qh4+ {[%clk 0:00:03.1]} 52. Kb3 {[%clk 0:00:07.3]} 52...
Rb1+ {[%clk 0:00:02.4]} 53. Ka2 {[%clk 0:00:06.7]} 53... Qa4+ {[%clk 0:00:02.4]}
54. Kxb1 {[%clk 0:00:06]} 54... Qb4+ {[%clk 0:00:03.2]} 55. Kc1 {[%clk
0:00:06.2]} 55... Qxd6 {[%clk 0:00:03.9]} 56. Kb2 {[%clk 0:00:06.7]} 56... Qb6
{[%clk 0:00:04.7]} 57. c4 {[%clk 0:00:06.3]} 57... Kd4 {[%clk 0:00:04.8]} 58.
Kb3 {[%clk 0:00:06.2]} 58... a6 {[%clk 0:00:05.7]} 59. g4 {[%clk 0:00:05.5]}
59... axb5 {[%clk 0:00:05.6]} 60. c5 {[%clk 0:00:05.1]} 60... Qxc5 {[%clk
0:00:05.6]} 61. g5 {[%clk 0:00:05.4]} 61... Qxg5 {[%clk 0:00:06.2]} 62. Kb4
{[%clk 0:00:05]} 62... Qc5+ {[%clk 0:00:05.9]} 63. Ka5 {[%clk 0:00:05.1]} 63...
b4+ {[%clk 0:00:05.4]} 64. Ka4 {[%clk 0:00:04.9]} 64... b5+ {[%clk 0:00:05.9]}
65. Kb3 {[%clk 0:00:04.7]} 65... Qc3+ {[%clk 0:00:06.3]} 66. Ka2 {[%clk
0:00:04]} 66... Qa3+ {[%clk 0:00:05.5]} 67. Kb1 {[%clk 0:00:03.8]} 67... Qb3+
{[%clk 0:00:05.5]} 68. Ka1 {[%clk 0:00:03.6]} 68... Qc3+ {[%clk 0:00:05]} 69.
Ka2 {[%clk 0:00:03.5]} 69... b3+ {[%clk 0:00:04.9]} 70. Ka3 {[%clk 0:00:03.7]}
70... b2+ {[%clk 0:00:04.6]} 71. Ka2 {[%clk 0:00:03.5]} 71... Qc2 {[%clk
0:00:02.2]} 72. Ka3 {[%clk 0:00:02.2]} 72... b4+ {[%clk 0:00:02.4]} 73. Ka2
{[%clk 0:00:01.6]} 73... b1=Q# {[%clk 0:00:02.7]} 0-1

[Event "*** Titled Tuesday Blitz"]
[Site "Chess.com"]
[Date "2020.05.05"]
[Round "9"]
[White "Igor_Lysyj"]
[Black "DrVitman"]
[Result "1/2-1/2"]
[WhiteElo "2779"]
[BlackElo "2546"]
[TimeControl "180+1"]
[EndTime "11:49:31 PDT"]
[Termination "Game drawn - insufficient material"]

1. d4 {[%clk 0:02:57.6]} 1... d6 {[%clk 0:02:53.5]} 2. Nf3 {[%clk 0:02:56.5]}
2... Bg4 {[%clk 0:02:52.8]} 3. c4 {[%clk 0:02:55.3]} 3... Bxf3 {[%clk
0:02:51.5]} 4. exf3 {[%clk 0:02:54]} 4... c6 {[%clk 0:02:51.8]} 5. Nc3 {[%clk
0:02:52.5]} 5... e6 {[%clk 0:02:47.2]} 6. d5 {[%clk 0:02:52.5]} 6... e5 {[%clk
0:02:06.2]} 7. dxc6 {[%clk 0:02:51.9]} 7... Nxc6 {[%clk 0:02:02.9]} 8. f4 {[%clk
0:02:46.2]} 8... Nge7 {[%clk 0:01:59.3]} 9. Bd3 {[%clk 0:02:43.9]} 9... g6
{[%clk 0:01:55.2]} 10. O-O {[%clk 0:02:42.8]} 10... Bg7 {[%clk 0:01:55.2]} 11.
fxe5 {[%clk 0:02:31.6]} 11... dxe5 {[%clk 0:01:56.1]} 12. c5 {[%clk 0:02:25.8]}
12... O-O {[%clk 0:01:55.6]} 13. Bc4 {[%clk 0:02:25.7]} 13... Qd4 {[%clk
0:01:49.5]} 14. Qxd4 {[%clk 0:02:21.2]} 14... exd4 {[%clk 0:01:44.6]} 15. Ne4
{[%clk 0:02:18.4]} 15... Ne5 {[%clk 0:01:44.7]} 16. Bb3 {[%clk 0:02:15.5]} 16...
a5 {[%clk 0:01:22.3]} 17. Bg5 {[%clk 0:02:11.9]} 17... Nf5 {[%clk 0:01:19.5]}
18. Rad1 {[%clk 0:02:04.2]} 18... h6 {[%clk 0:01:17.9]} 19. Bf4 {[%clk
0:01:42.9]} 19... Rfd8 {[%clk 0:01:17.5]} 20. Rfe1 {[%clk 0:01:39]} 20... d3
{[%clk 0:01:10.4]} 21. Nd6 {[%clk 0:01:20.2]} 21... Nxd6 {[%clk 0:01:05.8]} 22.
cxd6 {[%clk 0:01:19.9]} 22... a4 {[%clk 0:00:59.2]} 23. Bd5 {[%clk 0:01:11.6]}
23... Rxd6 {[%clk 0:00:58.4]} 24. Bxb7 {[%clk 0:01:10.9]} 24... Ra5 {[%clk
0:00:57.5]} 25. Rd2 {[%clk 0:00:37.9]} 25... Rb5 {[%clk 0:00:48.3]} 26. Be4
{[%clk 0:00:35.7]} 26... f5 {[%clk 0:00:41.5]} 27. Ba8 {[%clk 0:00:30.2]} 27...
g5 {[%clk 0:00:41.4]} 28. Bxe5 {[%clk 0:00:25.8]} 28... Bxe5 {[%clk 0:00:42.3]}
29. g3 {[%clk 0:00:18.8]} 29... Rxb2 {[%clk 0:00:38.3]} 30. Rxb2 {[%clk
0:00:17.7]} 30... Bxb2 {[%clk 0:00:39.2]} 31. Rd1 {[%clk 0:00:17.6]} 31... a3
{[%clk 0:00:33.4]} 32. Kf1 {[%clk 0:00:17.2]} 32... Kg7 {[%clk 0:00:33]} 33. Bb7
{[%clk 0:00:16.3]} 33... Kf6 {[%clk 0:00:31.9]} 34. Bc8 {[%clk 0:00:16.4]} 34...
g4 {[%clk 0:00:29.7]} 35. Bb7 {[%clk 0:00:15.7]} 35... h5 {[%clk 0:00:29]} 36.
Kg2 {[%clk 0:00:14.8]} 36... Kg5 {[%clk 0:00:25.9]} 37. h3 {[%clk 0:00:14.2]}
37... f4 {[%clk 0:00:24]} 38. hxg4 {[%clk 0:00:13.7]} 38... hxg4 {[%clk
0:00:24.9]} 39. gxf4+ {[%clk 0:00:13.6]} 39... Kxf4 {[%clk 0:00:25.8]} 40. Bc8
{[%clk 0:00:13.4]} 40... d2 {[%clk 0:00:23.2]} 41. Bb7 {[%clk 0:00:13]} 41...
Bc3 {[%clk 0:00:22.3]} 42. Bc8 {[%clk 0:00:12.5]} 42... Rb6 {[%clk 0:00:21.5]}
43. Bd7 {[%clk 0:00:12]} 43... Rb2 {[%clk 0:00:16.5]} 44. Be6 {[%clk 0:00:11.8]}
44... Rb6 {[%clk 0:00:16.3]} 45. Bc4 {[%clk 0:00:11.1]} 45... Rb4 {[%clk
0:00:14.6]} 46. Bf7 {[%clk 0:00:10.5]} 46... Rb6 {[%clk 0:00:13.8]} 47. Kf1
{[%clk 0:00:09.4]} 47... Rf6 {[%clk 0:00:13.7]} 48. Bb3 {[%clk 0:00:08.8]} 48...
g3 {[%clk 0:00:09.5]} 49. Kg2 {[%clk 0:00:08.9]} 49... gxf2 {[%clk 0:00:08.4]}
50. Kxf2 {[%clk 0:00:08.8]} 50... Ke4+ {[%clk 0:00:08.9]} 51. Ke2 {[%clk
0:00:08.7]} 51... Rh6 {[%clk 0:00:06.2]} 52. Bc2+ {[%clk 0:00:08.5]} 52... Kd4
{[%clk 0:00:05.5]} 53. Kf3 {[%clk 0:00:08.8]} 53... Rf6+ {[%clk 0:00:05]} 54.
Ke2 {[%clk 0:00:08.5]} 54... Re6+ {[%clk 0:00:05.3]} 55. Kf2 {[%clk 0:00:08]}
55... Rb6 {[%clk 0:00:05.7]} 56. Ba4 {[%clk 0:00:07.5]} 56... Rb4 {[%clk
0:00:05]} 57. Bb3 {[%clk 0:00:07.5]} 57... Rxb3 {[%clk 0:00:04.7]} 58. axb3
{[%clk 0:00:07.5]} 58... a2 {[%clk 0:00:05.1]} 59. Ke2 {[%clk 0:00:07.1]} 59...
Bb4 {[%clk 0:00:04.9]} 60. Ra1 {[%clk 0:00:06.8]} 60... Kc3 {[%clk 0:00:04.5]}
61. Rxa2 {[%clk 0:00:07.1]} 61... Kxb3 {[%clk 0:00:05]} 62. Ra8 {[%clk
0:00:06.9]} 62... Kc3 {[%clk 0:00:04.4]} 63. Rc8+ {[%clk 0:00:06.8]} 63... Kb3
{[%clk 0:00:04.5]} 64. Kd1 {[%clk 0:00:06.8]} 64... Bc3 {[%clk 0:00:04.9]} 65.
Rc7 {[%clk 0:00:06.6]} 65... Bb4 {[%clk 0:00:05.1]} 66. Rh7 {[%clk 0:00:06.3]}
66... Bc3 {[%clk 0:00:05.2]} 67. Rh3 {[%clk 0:00:06.2]} 67... Kb2 {[%clk
0:00:05.1]} 68. Rd3 {[%clk 0:00:05.2]} 68... Kb3 {[%clk 0:00:04.8]} 69. Rxd2
{[%clk 0:00:04.6]} 69... Bxd2 {[%clk 0:00:04.5]} 1/2-1/2

[Event "*** Titled Tuesday Blitz"]
[Site "Chess.com"]
[Date "2020.05.05"]
[Round "9"]
[White "Khamrakulov_Djurabek"]
[Black "albi1999"]
[Result "1/2-1/2"]
[WhiteElo "2812"]
[BlackElo "2633"]
[TimeControl "180+1"]
[EndTime "11:49:33 PDT"]
[Termination "Game drawn by stalemate"]

1. e4 {[%clk 0:03:00.9]} 1... e5 {[%clk 0:02:57.8]} 2. Nf3 {[%clk 0:03:00.9]}
2... Nc6 {[%clk 0:02:55.2]} 3. d4 {[%clk 0:03:00.8]} 3... exd4 {[%clk
0:02:54.6]} 4. Nxd4 {[%clk 0:03:01.5]} 4... Nf6 {[%clk 0:02:55.2]} 5. Nc3 {[%clk
0:02:58]} 5... Bb4 {[%clk 0:02:54.4]} 6. Nxc6 {[%clk 0:02:58]} 6... bxc6 {[%clk
0:02:54.3]} 7. Bd3 {[%clk 0:02:58.5]} 7... d5 {[%clk 0:02:54.8]} 8. exd5 {[%clk
0:02:58.7]} 8... O-O {[%clk 0:02:55.3]} 9. O-O {[%clk 0:02:58.5]} 9... cxd5
{[%clk 0:02:55.7]} 10. h3 {[%clk 0:02:57.6]} 10... c6 {[%clk 0:02:54.2]} 11. Qf3
{[%clk 0:02:57.4]} 11... Bd6 {[%clk 0:02:51.3]} 12. Bf4 {[%clk 0:02:56.5]} 12...
Be6 {[%clk 0:02:47.6]} 13. Rfe1 {[%clk 0:02:51.3]} 13... Rb8 {[%clk 0:02:46.5]}
14. b3 {[%clk 0:02:51.3]} 14... Rb4 {[%clk 0:02:45.8]} 15. Ne2 {[%clk
0:02:49.6]} 15... Bxf4 {[%clk 0:02:37.5]} 16. Nxf4 {[%clk 0:02:49.1]} 16... Qd6
{[%clk 0:02:38]} 17. c4 {[%clk 0:02:45.5]} 17... Rbb8 {[%clk 0:02:08.6]} 18.
Rad1 {[%clk 0:02:43.9]} 18... d4 {[%clk 0:02:04.5]} 19. c5 {[%clk 0:02:38.4]}
19... Qd7 {[%clk 0:01:47.3]} 20. Nxe6 {[%clk 0:02:32.6]} 20... fxe6 {[%clk
0:01:46.9]} 21. Bc4 {[%clk 0:02:25.7]} 21... Rfe8 {[%clk 0:01:37.8]} 22. Qf5
{[%clk 0:01:55.5]} 22... Kf7 {[%clk 0:01:06.7]} 23. Rd2 {[%clk 0:01:55.2]} 23...
Re7 {[%clk 0:01:06.3]} 24. Qf4 {[%clk 0:01:41.5]} 24... Rd8 {[%clk 0:01:03.1]}
25. Red1 {[%clk 0:01:41.4]} 25... Qc7 {[%clk 0:00:55.9]} 26. Qxc7 {[%clk
0:01:39.3]} 26... Rxc7 {[%clk 0:00:56.8]} 27. Rxd4 {[%clk 0:01:39.3]} 27... Nd5
{[%clk 0:00:57]} 28. Re4 {[%clk 0:01:30.6]} 28... Re7 {[%clk 0:00:51.5]} 29. Rd3
{[%clk 0:01:29.8]} 29... Rdd7 {[%clk 0:00:50.3]} 30. g4 {[%clk 0:01:27.9]} 30...
Nf6 {[%clk 0:00:48.5]} 31. Rxd7 {[%clk 0:01:24]} 31... Nxe4 {[%clk 0:00:46.5]}
32. Rxe7+ {[%clk 0:01:17.7]} 32... Kxe7 {[%clk 0:00:47.4]} 33. b4 {[%clk
0:01:11.3]} 33... g5 {[%clk 0:00:45.9]} 34. a3 {[%clk 0:01:01.2]} 34... h6
{[%clk 0:00:45.5]} 35. Bd3 {[%clk 0:01:00.1]} 35... Nf6 {[%clk 0:00:42.6]} 36.
Kg2 {[%clk 0:00:59.3]} 36... Nd5 {[%clk 0:00:42.8]} 37. Be4 {[%clk 0:00:57.3]}
37... Kf6 {[%clk 0:00:38.2]} 38. Bxd5 {[%clk 0:00:45.7]} 38... exd5 {[%clk
0:00:39.1]} 39. Kf3 {[%clk 0:00:45.7]} 39... Ke5 {[%clk 0:00:39.1]} 40. Ke3
{[%clk 0:00:46.1]} 40... a6 {[%clk 0:00:36.5]} 41. a4 {[%clk 0:00:46]} 41... d4+
{[%clk 0:00:32.9]} 42. Kd3 {[%clk 0:00:42.3]} 42... Kd5 {[%clk 0:00:33.3]} 43.
f4 {[%clk 0:00:34.6]} 43... gxf4 {[%clk 0:00:32.2]} 44. h4 {[%clk 0:00:34.9]}
44... f3 {[%clk 0:00:32.5]} 45. g5 {[%clk 0:00:32.6]} 45... hxg5 {[%clk
0:00:32.1]} 46. h5 {[%clk 0:00:32.9]} 46... g4 {[%clk 0:00:21.2]} 47. h6 {[%clk
0:00:32.5]} 47... g3 {[%clk 0:00:21.6]} 48. h7 {[%clk 0:00:32.5]} 48... g2
{[%clk 0:00:16.6]} 49. h8=Q {[%clk 0:00:31.3]} 49... g1=Q {[%clk 0:00:16.8]} 50.
Qh5+ {[%clk 0:00:23.5]} 50... Ke6 {[%clk 0:00:16.7]} 51. Qxf3 {[%clk 0:00:16.1]}
51... Qb1+ {[%clk 0:00:15.7]} 52. Kc4 {[%clk 0:00:14.6]} 52... Qa2+ {[%clk
0:00:11.2]} 53. Kxd4 {[%clk 0:00:12.5]} 53... Qxa4 {[%clk 0:00:11.4]} 54. Qg4+
{[%clk 0:00:12.3]} 54... Ke7 {[%clk 0:00:11.5]} 55. Qg7+ {[%clk 0:00:12.2]}
55... Ke6 {[%clk 0:00:11.5]} 56. Qg6+ {[%clk 0:00:12.4]} 56... Kd7 {[%clk
0:00:11.8]} 57. Qd6+ {[%clk 0:00:12.2]} 57... Kc8 {[%clk 0:00:11.8]} 58. Ke5
{[%clk 0:00:12.2]} 58... Qxb4 {[%clk 0:00:10.1]} 59. Qxc6+ {[%clk 0:00:12]}
59... Kb8 {[%clk 0:00:10.6]} 60. Qe8+ {[%clk 0:00:11.6]} 60... Kc7 {[%clk
0:00:10.4]} 61. Qe7+ {[%clk 0:00:10.6]} 61... Kc8 {[%clk 0:00:10.9]} 62. Qe6+
{[%clk 0:00:10]} 62... Kc7 {[%clk 0:00:09.9]} 63. Qd6+ {[%clk 0:00:10.3]} 63...
Kc8 {[%clk 0:00:10.2]} 64. Qxa6+ {[%clk 0:00:10.5]} 64... Kc7 {[%clk 0:00:09.7]}
65. Qd6+ {[%clk 0:00:09.6]} 65... Kc8 {[%clk 0:00:10.1]} 66. Qe6+ {[%clk
0:00:08.9]} 66... Kc7 {[%clk 0:00:10.1]} 67. Qe7+ {[%clk 0:00:09.2]} 67... Kc8
{[%clk 0:00:09.9]} 68. Qe6+ {[%clk 0:00:09.5]} 68... Kc7 {[%clk 0:00:10.3]} 69.
Qd5 {[%clk 0:00:09.6]} 69... Qe1+ {[%clk 0:00:09.3]} 70. Kf6 {[%clk 0:00:09.6]}
70... Qe8 {[%clk 0:00:09.8]} 71. Qd6+ {[%clk 0:00:08.9]} 71... Kc8 {[%clk
0:00:10.3]} 72. c6 {[%clk 0:00:08.6]} 72... Qd8+ {[%clk 0:00:10.1]} 73. Ke6
{[%clk 0:00:05.9]} 73... Qxd6+ {[%clk 0:00:09.3]} 74. Kxd6 {[%clk 0:00:06.8]}
74... Kd8 {[%clk 0:00:10.2]} 75. c7+ {[%clk 0:00:07.7]} 75... Kc8 {[%clk
0:00:10.5]} 76. Kc6 {[%clk 0:00:08.6]} 1/2-1/2